fUSD/lending_fUSD_20260201
["ID","MTS","AMOUNT","RATE_DAILY","PERIOD"]
[404192109,1769926247319,-844.0,0.0001672,2]
[404192110,1769926247328,-3501.59354307,0.00016767,2]
[404192111,1769926247337,-545.17,0.00016833,2]
[404192112,1769926247347,-5888.0,0.00016838,2]
[404192113,1769926247357,-1960.8724694,0.00016857,2]
[404192114,1769926247367,-433.0,0.00016912,2]
[404192115,1769926247377,-10138.3866,0.00016925,2]
[404192116,1769926247386,-1000.0,0.00016986,2]
[404192117,1769926247396,-175.46431785,0.0001705,2]
[404192118,1769926247406,-165.78193378,0.00017099,2]
[404192119,1769926247415,-377.2,0.00017112,2]
[404192120,1769926247425,-3023.5716246,0.00017116,2]
[404192121,1769926247435,-286.0,0.00017117,2]
[404192122,1769926247446,-3501.59354307,0.00017144,2]
[404192123,1769926247460,-1999.0,0.0001726,2]
[404192124,1769926247471,-1000.0,0.00017309,2]
[404192125,1769926247479,-437.5297881,0.00017363,2]
[404192126,1769926247490,-262.85,0.00017376,2]
[404192127,1769926247500,-165.78193378,0.00017499,2]
[404192128,1769926247511,-3501.59354307,0.00017522,2]
[404192129,1769926247520,-10000.0,0.0001758,2]
[404192130,1769926247530,-151.0,0.0001758,2]
[404192131,1769926247539,-151.0,0.0001758,2]
[404192132,1769926247550,-4411.40329973,0.00017612,2]
[404192133,1769926247559,-151.0,0.00017612,2]
[404192134,1769926247568,-151.0,0.00017612,2]
[404192135,1769926247577,-199.229497,0.00017612,2]
[404192136,1769926247587,-274.654369,0.00017612,2]
[404192137,1769926247596,-2834.0,0.0001768,2]
[404192138,1769926247605,-2871.0,0.0001768,2]
[404192139,1769926247614,-377.2,0.00017709,2]
[404192140,1769926247623,-5888.0,0.00017733,2]
[404192141,1769926247632,-500.0,0.00017808,2]
[404192142,1769926247642,-500.0,0.00017863,2]
[404192143,1769926247651,-151.0,0.00017897,2]
[404192144,1769926247661,-636.38929602,0.000179,2]
[404192145,1769926247670,-165.78193378,0.000179,2]
[404192146,1769926247680,-151.0,0.000179,2]
[404192147,1769926247689,-3501.59354307,0.000179,2]
[404192148,1769926247698,-175.46431785,0.000179,2]
[404192149,1769926247708,-383.39875972,0.000179,2]
[404192150,1769926247717,-150.30591603,0.000179,2]
[404192151,1769926247726,-1164.2238217,0.000179,3]
[404192152,1769926247736,-613.85297075,0.000179,2]
[404192153,1769926247745,-1389.5486535,0.000179,2]
[404192154,1769926247755,-172.48206623,0.000179,3]
[404192155,1769926247764,-500.0,0.00017918,2]
[404192156,1769926247773,-500.0,0.00017972,2]
[404192157,1769926247783,-500.0,0.00017973,2]
[404192158,1769926247792,-260.20893212,0.00017973,2]
[404192159,1769926247802,-500.0,0.00017973,2]
[404192160,1769926247811,-8312.5001,0.0001799,3]
[404192161,1769926247820,-278.36328388,0.00017997,2]
[404192162,1769926247829,-300.0,0.00017999,2]
[404192163,1769926247838,-23082.898727,0.00018,2]
[404192164,1769926247967,-1834.0638,0.000146,2]
[404192165,1769926247978,-31539.33874798,0.00018,2]
[404192166,1769926268000,219.1276311,0.00043556,30]
[404192167,1769926278844,403.46642661,0.00043556,30]
[404192168,1769926283863,1085.32,0.00043556,120]
[404192221,1769927053039,151.0,0.00043554,120]
[404192222,1769927054169,156.587,0.00043554,120]
[404192223,1769927054854,162.380719,0.00043554,120]
[404192224,1769927058340,174.61919141,0.00043554,120]
[404192225,1769927059022,181.08010149,0.00043554,120]
[404192226,1769927059660,187.78006525,0.00043554,120]
[404192227,1769927060378,194.72792766,0.00043554,120]
[404192228,1769927060954,201.93286099,0.00043554,120]
[404192229,1769927061593,209.40437684,0.00043554,120]
[404192230,1769927066385,217.15233878,0.00043554,120]
[404192231,1769927067060,225.18697532,0.00043554,120]
[404192232,1769927067752,233.51889341,0.00043554,120]
[404192233,1769927068400,242.15909246,0.00043554,120]
[404192234,1769927069039,251.11897888,0.00043554,120]
[404192235,1769927069673,260.4103811,0.00043554,120]
[404192236,1769927070317,270.0455652,0.00043554,120]
[404192237,1769927070944,280.03725112,0.00043554,120]
[404192238,1769927071608,290.39862941,0.00043554,120]
[404192239,1769927072259,290.39862941,0.00043554,120]
[404192244,1769927112496,156.587,0.00043554,120]
[404192246,1769927113152,162.380719,0.00043554,120]
[404192248,1769927113808,168.3888056,0.00043554,120]
[404192250,1769927114448,174.61919141,0.00043554,120]
[404192252,1769927115101,181.08010149,0.00043554,120]
[404192254,1769927115735,187.78006525,0.00043554,120]
[404192256,1769927116401,194.72792766,0.00043554,120]
[404192258,1769927117077,201.93286099,0.00043554,120]
[404192260,1769927117722,209.40437684,0.00043554,120]
[404192262,1769927118370,217.15233878,0.00043554,120]
[404192264,1769927119535,225.18697532,0.00043554,120]
[404192266,1769927120266,233.51889341,0.00043554,120]
[404192268,1769927120911,242.15909246,0.00043554,120]
[404192269,1769927121541,251.11897888,0.00043554,120]
[404192270,1769927122183,260.4103811,0.00043554,120]
[404192271,1769927122903,270.0455652,0.00043554,120]
[404192272,1769927123488,280.03725112,0.00043554,120]
[404192273,1769927124132,290.39862941,0.00043554,120]
[404192274,1769927124767,290.39862941,0.00043554,120]
[404192291,1769927431428,-756.18617286,0.00013589,2]
[404192293,1769927431440,-121.16382714,0.00013589,2]
[404192295,1769927431450,-500.0,0.00013608,2]
[404192296,1769927431460,-501.81901913,0.00014589,2]
[404192297,1769927431469,-166.66,0.00014641,2]
[404192298,1769927431478,-1200.0,0.00014947,2]
[404192299,1769927431487,-261.0,0.00014947,2]
[404192300,1769927431495,-300.0,0.00014947,2]
[404192301,1769927431504,-520.88868761,0.00014948,2]
[404192302,1769927431515,-1435.12927667,0.00014948,2]
[404192303,1769927431525,-250.0,0.00014948,2]
[404192304,1769927431535,-166.66,0.00014949,2]
[404192305,1769927431545,-250.0,0.00015,2]
[404192306,1769927431555,-207.81,0.00015183,2]
[404192307,1769927431566,-1315.88,0.000152,2]
[404192308,1769927431577,-166.66,0.00015257,2]
[404192309,1769927431587,-150.0,0.0001526,2]
[404192310,1769927431598,-166.66,0.00015565,2]
[404192311,1769927431607,-327.1,0.00015687,2]
[404192312,1769927431617,-151.0,0.00015842,2]
[404192313,1769927431629,-151.0,0.00015842,2]
[404192314,1769927431640,-151.0,0.00015846,2]
[404192315,1769927431650,-151.0,0.00015846,2]
[404192316,1769927431659,-166.66,0.00015873,2]
[404192318,1769927431670,-207.81,0.00015943,2]
[404192320,1769927431679,-556.2559,0.00016088,2]
[404192322,1769927431688,-1834.0638,0.00016088,2]
[404192324,1769927431697,-1147.21,0.00016178,2]
[404192325,1769927431707,-1147.21,0.00016178,2]
[404192326,1769927431718,-1147.21,0.00016178,2]
[404192327,1769927431727,-1147.21,0.00016178,2]
[404192328,1769927431737,-1147.21,0.00016178,2]
[404192329,1769927431746,-2427.20805516,0.00016179,2]
[404192330,1769927431755,-153.33580468,0.00016179,2]
[404192331,1769927431764,-306.95182263,0.00016179,2]
[404192332,1769927431773,-166.66,0.00016182,2]
[404192333,1769927431793,-550.0,0.00016186,2]
[404192334,1769927431803,-500.0,0.00016187,2]
[404192335,1769927431814,-207.2145143,0.00016187,2]
[404192336,1769927431824,-498.86000635,0.00016187,2]
[404192337,1769927431834,-307.7791865,0.00016187,2]
[404192338,1769927431843,-500.0,0.00016187,2]
[404192339,1769927431853,-500.0,0.00016187,2]
[404192340,1769927431862,-500.0,0.00016187,2]
[404192341,1769927431872,-500.0,0.00016187,2]
[404192342,1769927431881,-500.0,0.00016187,2]
[404192343,1769927431890,-269.04330534,0.00016187,2]
[404192344,1769927431900,-556.39730886,0.00016187,2]
[404192345,1769927431909,-204.02408674,0.00016187,2]
[404192346,1769927431919,-559.19921317,0.00016187,2]
[404192347,1769927431928,-500.0,0.00016187,2]
[404192348,1769927431937,-500.0,0.00016187,2]
[404192349,1769927431947,-500.0,0.00016187,2]
[404192350,1769927431956,-500.0,0.00016187,2]
[404192351,1769927431966,-500.0,0.00016187,2]
[404192352,1769927431975,-500.0,0.00016187,2]
[404192353,1769927431984,-500.0,0.00016187,2]
[404192354,1769927431994,-500.0,0.00016187,2]
[404192355,1769927432004,-500.0,0.00016187,2]
[404192356,1769927432014,-500.0,0.00016187,2]
[404192357,1769927432024,-500.0,0.00016187,2]
[404192358,1769927432034,-500.0,0.00016187,2]
[404192359,1769927432044,-500.0,0.00016187,2]
[404192360,1769927432053,-500.0,0.00016187,2]
[404192361,1769927432062,-500.0,0.00016187,2]
[404192362,1769927432072,-500.0,0.00016187,2]
[404192363,1769927432081,-365.15817176,0.00016187,2]
[404192364,1769927432091,-500.0,0.00016187,2]
[404192365,1769927432100,-500.0,0.00016187,2]
[404192366,1769927432110,-439.32775241,0.00016187,2]
[404192367,1769927432119,-500.0,0.00016187,2]
[404192368,1769927432130,-500.0,0.00016187,2]
[404192369,1769927432141,-500.0,0.00016187,2]
[404192370,1769927432150,-500.0,0.00016187,2]
[404192371,1769927432159,-500.0,0.00016187,2]
[404192372,1769927432171,-201.42572805,0.00016187,2]
[404192373,1769927432180,-500.0,0.00016187,2]
[404192374,1769927432189,-500.0,0.00016187,2]
[404192375,1769927432200,-500.0,0.00016187,2]
[404192376,1769927432210,-188.46977297,0.00016187,2]
[404192377,1769927432220,-53086.8685339,0.00016188,2]
[404192378,1769927432237,-8406.19475035,0.00016188,2]
[404192379,1769927432247,-31073.06857926,0.00016188,2]
[404192380,1769927432260,-8886.18718251,0.00016188,2]
[404192381,1769927432273,-1351.14592439,0.00016188,2]
[404192382,1769927432285,-1283.74605043,0.00016188,2]
[404192393,1769927437518,-3729.44527212,0.00016188,2]
[404192394,1769927437530,-9258.27143854,0.00016188,2]
[404192395,1769927437632,-540.01220046,0.00016188,2]
[404192396,1769927437643,-15076.31326257,0.00016188,2]
[404192596,1769927439670,-395.1095303,0.00016188,2]
[404192601,1769927439702,-120912.04060929,0.00016188,2]
[404192626,1769927439923,-1120.048768,0.00016188,2]
[404192745,1769927443986,-243483.73533795,0.00016188,2]
[404192747,1769927445656,-199.14,0.00015985,2]
[404192748,1769927445666,-151.0,0.00015985,2]
[404192749,1769927445675,-14261.92547665,0.00016188,2]
[404192750,1769927445766,-2291.17138205,0.00016188,2]
[404192751,1769927445777,-362.84828034,0.00016188,2]
[404192752,1769927445794,-1141.6,0.00016188,2]
[404192753,1769927445804,-2413.0816585,0.00016188,2]
[404192760,1769927655325,151.0,0.00043554,120]
[404192761,1769927655977,156.587,0.00043554,120]
[404192762,1769927657140,162.380719,0.00043554,120]
[404192763,1769927657797,168.3888056,0.00043554,120]
[404192764,1769927658435,174.61919141,0.00043554,120]
[404192765,1769927659095,181.08010149,0.00043554,120]
[404192766,1769927660238,187.78006525,0.00043554,120]
[404192767,1769927660873,194.72792766,0.00043554,120]
[404192768,1769927664628,201.93286099,0.00043554,120]
[404192769,1769927669395,209.40437684,0.00043554,120]
[404192770,1769927669972,217.15233878,0.00043554,120]
[404192771,1769927670596,225.18697532,0.00043554,120]
[404192772,1769927671284,233.51889341,0.00043554,120]
[404192773,1769927671994,242.15909246,0.00043554,120]
[404192774,1769927672631,251.11897888,0.00043554,120]
[404192775,1769927673300,260.4103811,0.00043554,120]
[404192776,1769927673938,270.0455652,0.00043554,120]
[404192777,1769927674577,280.03725112,0.00043554,120]
[404192778,1769927675216,290.39862941,0.00043554,120]
[404192779,1769927675885,290.39862941,0.00043554,120]
[404192787,1769927759752,306.844,0.00043554,30]
[404192788,1769927775188,151.0,0.00043554,120]
[404192789,1769927775824,156.587,0.00043554,120]
[404192790,1769927776479,162.380719,0.00043554,120]
[404192791,1769927777123,168.3888056,0.00043554,120]
[404192792,1769927777764,174.61919141,0.00043554,120]
[404192793,1769927778411,181.08010149,0.00043554,120]
[404192794,1769927779074,187.78006525,0.00043554,120]
[404192795,1769927779744,194.72792766,0.00043554,120]
[404192796,1769927780376,201.93286099,0.00043554,120]
[404192797,1769927781052,209.40437684,0.00043554,120]
[404192798,1769927788436,217.15233878,0.00043554,120]
[404192799,1769927789613,225.18697532,0.00043554,120]
[404192800,1769927790252,233.51889341,0.00043554,120]
[404192801,1769927791407,242.15909246,0.00043554,120]
[404192802,1769927792038,251.11897888,0.00043554,120]
[404192803,1769927792675,260.4103811,0.00043554,120]
[404192804,1769927793325,270.0455652,0.00043554,120]
[404192805,1769927793976,280.03725112,0.00043554,120]
[404192806,1769927794628,290.39862941,0.00043554,120]
[404192807,1769927795286,290.39862941,0.00043554,120]
[404192809,1769927891658,151.0,0.00043554,120]
[404192810,1769927892810,156.587,0.00043554,120]
[404192811,1769927893454,162.380719,0.00043554,120]
[404192812,1769927894076,168.3888056,0.00043554,120]
[404192813,1769927894702,174.61919141,0.00043554,120]
[404192814,1769927895376,181.08010149,0.00043554,120]
[404192815,1769927896055,187.78006525,0.00043554,120]
[404192816,1769927896741,194.72792766,0.00043554,120]
[404192817,1769927897421,201.93286099,0.00043554,120]
[404192818,1769927898032,209.40437684,0.00043554,120]
[404192819,1769927898696,217.15233878,0.00043554,120]
[404192820,1769927899430,225.18697532,0.00043554,120]
[404192821,1769927899993,233.51889341,0.00043554,120]
[404192822,1769927904694,242.15909246,0.00043554,120]
[404192823,1769927906679,251.11897888,0.00043551,120]
[404192824,1769927907317,260.4103811,0.00043551,120]
[404192825,1769927908485,270.0455652,0.00043551,120]
[404192826,1769927909145,280.03725112,0.00043551,120]
[404192827,1769927909803,290.39862941,0.00043551,120]
[404192828,1769927910474,290.39862941,0.00043551,120]
[404192829,1769927914981,-150.0,0.00015,2]
[404192850,1769928021323,151.0,0.00043551,120]
[404192851,1769928021790,156.587,0.00043551,120]
[404192852,1769928021979,156.587,0.00043551,120]
[404192853,1769928022424,162.380719,0.00043551,120]
[404192854,1769928022664,162.380719,0.00043551,120]
[404192855,1769928023077,168.3888056,0.00043551,120]
[404192856,1769928023303,168.3888056,0.00043551,120]
[404192857,1769928023741,174.61919141,0.00043551,120]
[404192858,1769928024200,174.61919141,0.00043551,120]
[404192859,1769928024383,181.08010149,0.00043551,120]
[404192860,1769928024614,181.08010149,0.00043551,120]
[404192861,1769928025037,187.78006525,0.00043551,120]
[404192862,1769928025258,187.78006525,0.00043551,120]
[404192863,1769928025683,194.72792766,0.00043551,120]
[404192864,1769928025939,194.72792766,0.00043551,120]
[404192865,1769928026314,201.93286099,0.00043551,120]
[404192866,1769928026588,201.93286099,0.00043551,120]
[404192867,1769928026978,209.40437684,0.00043551,120]
[404192868,1769928027291,209.40437684,0.00043551,120]
[404192869,1769928027633,217.15233878,0.00043551,120]
[404192870,1769928027938,217.15233878,0.00043551,120]
[404192871,1769928028784,225.18697532,0.00043551,120]
[404192872,1769928029139,225.18697532,0.00043551,120]
[404192873,1769928029422,233.51889341,0.00043551,120]
[404192874,1769928029812,233.51889341,0.00043551,120]
[404192875,1769928030238,242.15909246,0.00043551,120]
[404192876,1769928030482,242.15909246,0.00043551,120]
[404192877,1769928030875,251.11897888,0.00043551,120]
[404192878,1769928031160,251.11897888,0.00043551,120]
[404192879,1769928031562,260.4103811,0.00043551,120]
[404192880,1769928031891,260.4103811,0.00043551,120]
[404192881,1769928032297,270.0455652,0.00043551,120]
[404192882,1769928033062,270.0455652,0.00043551,120]
[404192883,1769928033136,280.03725112,0.00043551,120]
[404192884,1769928033710,280.03725112,0.00043551,120]
[404192885,1769928034254,290.39862941,0.00043551,120]
[404192886,1769928034339,290.39862941,0.00043551,120]
[404192887,1769928034886,290.39862941,0.00043551,120]
[404192888,1769928034974,290.39862941,0.00043551,120]
[404192889,1769928076495,151.0,0.00043551,120]
[404192890,1769928077141,156.587,0.00043551,120]
[404192891,1769928077786,162.380719,0.00043551,120]
[404192892,1769928078501,168.3888056,0.00043551,120]
[404192893,1769928079125,174.61919141,0.00043551,120]
[404192894,1769928079773,181.08010149,0.00043551,120]
[404192895,1769928080409,187.78006525,0.00043551,120]
[404192896,1769928081051,194.72792766,0.00043551,120]
[404192897,1769928081704,201.93286099,0.00043551,120]
[404192898,1769928082360,209.40437684,0.00043551,120]
[404192899,1769928083007,217.15233878,0.00043551,120]
[404192900,1769928084169,225.18697532,0.00043551,120]
[404192901,1769928084807,233.51889341,0.00043551,120]
[404192902,1769928086110,242.15909246,0.00043551,120]
[404192903,1769928086571,251.11897888,0.00043551,120]
[404192904,1769928087250,260.4103811,0.00043551,120]
[404192905,1769928087989,270.0455652,0.00043551,120]
[404192906,1769928088773,280.03725112,0.00043551,120]
[404192907,1769928089432,290.39862941,0.00043551,120]
[404192908,1769928090065,290.39862941,0.00043551,120]
[404192909,1769928134914,151.0,0.00043551,120]
[404192910,1769928135567,156.587,0.00043551,120]
[404192911,1769928136195,162.380719,0.00043551,120]
[404192912,1769928136854,168.3888056,0.00043551,120]
[404192913,1769928137520,174.61919141,0.00043551,120]
[404192914,1769928138159,181.08010149,0.00043551,120]
[404192915,1769928138787,187.78006525,0.00043551,120]
[404192916,1769928139429,194.72792766,0.00043551,120]
[404192917,1769928140577,201.93286099,0.00043551,120]
[404192918,1769928141243,209.40437684,0.00043551,120]
[404192919,1769928147819,217.15233878,0.00043551,120]
[404192920,1769928149141,225.18697532,0.00043551,120]
[404192921,1769928149794,233.51889341,0.00043551,120]
[404192922,1769928150435,242.15909246,0.00043551,120]
[404192923,1769928151594,251.11897888,0.00043551,120]
[404192924,1769928152245,260.4103811,0.00043551,120]
[404192925,1769928153441,270.0455652,0.00043551,120]
[404192926,1769928154098,280.03725112,0.00043551,120]
[404192927,1769928154806,290.39862941,0.00043551,120]
[404192928,1769928156163,290.39862941,0.00043551,120]
[404192929,1769928248624,151.0,0.00043551,120]
[404192930,1769928249289,156.587,0.00043551,120]
[404192931,1769928249993,162.380719,0.00043551,120]
[404192932,1769928251138,168.3888056,0.00043551,120]
[404192933,1769928251757,174.61919141,0.00043551,120]
[404192934,1769928252388,181.08010149,0.00043551,120]
[404192935,1769928253025,187.78006525,0.00043551,120]
[404192936,1769928253714,194.72792766,0.00043551,120]
[404192937,1769928254487,201.93286099,0.00043551,120]
[404192938,1769928255026,209.40437684,0.00043551,120]
[404192939,1769928255693,217.15233878,0.00043551,120]
[404192940,1769928256391,225.18697532,0.00043551,120]
[404192941,1769928257041,233.51889341,0.00043551,120]
[404192942,1769928257677,242.15909246,0.00043551,120]
[404192943,1769928258587,251.11897888,0.00043551,120]
[404192944,1769928258946,260.4103811,0.00043551,120]
[404192945,1769928259602,270.0455652,0.00043551,120]
[404192946,1769928260243,280.03725112,0.00043551,120]
[404192947,1769928260908,290.39862941,0.00043551,120]
[404192948,1769928261586,290.39862941,0.00043551,120]
[404192949,1769928316799,151.0,0.00043551,120]
[404192950,1769928317449,156.587,0.00043551,120]
[404192951,1769928318410,162.380719,0.00043551,120]
[404192952,1769928319587,168.3888056,0.00043551,120]
[404192953,1769928320222,174.61919141,0.00043551,120]
[404192954,1769928320921,181.08010149,0.00043551,120]
[404192955,1769928321575,187.78006525,0.00043551,120]
[404192956,1769928322727,194.72792766,0.00043551,120]
[404192957,1769928323920,201.93286099,0.00043551,120]
[404192958,1769928324688,209.40437684,0.00043551,120]
[404192959,1769928325371,217.15233878,0.00043551,120]
[404192960,1769928326058,225.18697532,0.00043551,120]
[404192961,1769928326717,233.51889341,0.00043551,120]
[404192962,1769928327365,242.15909246,0.00043551,120]
[404192963,1769928328050,251.11897888,0.00043551,120]
[404192964,1769928329168,260.4103811,0.00043551,120]
[404192965,1769928329801,270.0455652,0.00043551,120]
[404192966,1769928330493,280.03725112,0.00043551,120]
[404192967,1769928331153,290.39862941,0.00043551,120]
[404192968,1769928331802,290.39862941,0.00043551,120]
[404192969,1769928374459,151.0,0.00043551,120]
[404192970,1769928375222,156.587,0.00043551,120]
[404192971,1769928375885,162.380719,0.00043551,120]
[404192972,1769928376529,168.3888056,0.00043551,120]
[404192973,1769928377215,174.61919141,0.00043551,120]
[404192974,1769928377890,181.08010149,0.00043551,120]
[404192975,1769928378577,187.78006525,0.00043551,120]
[404192976,1769928379247,194.72792766,0.00043551,120]
[404192977,1769928379904,201.93286099,0.00043551,120]
[404192978,1769928380541,209.40437684,0.00043551,120]
[404192979,1769928381176,217.15233878,0.00043551,120]
[404192980,1769928381851,225.18697532,0.00043551,120]
[404192981,1769928382487,233.51889341,0.00043551,120]
[404192982,1769928383675,242.15909246,0.00043551,120]
[404192983,1769928384310,251.11897888,0.00043551,120]
[404192984,1769928385066,260.4103811,0.00043551,120]
[404192985,1769928385620,270.0455652,0.00043551,120]
[404192986,1769928386251,280.03725112,0.00043551,120]
[404192987,1769928386926,290.39862941,0.00043551,120]
[404192988,1769928387581,290.39862941,0.00043551,120]
[404192989,1769928445799,151.0,0.00043551,120]
[404192990,1769928446435,156.587,0.00043551,120]
[404192991,1769928447110,162.380719,0.00043551,120]
[404192992,1769928447724,168.3888056,0.00043551,120]
[404192993,1769928448373,174.61919141,0.00043551,120]
[404192994,1769928449018,181.08010149,0.00043551,120]
[404192995,1769928449640,187.78006525,0.00043551,120]
[404192996,1769928450273,194.72792766,0.00043551,120]
[404192997,1769928450917,201.93286099,0.00043551,120]
[404192998,1769928451564,209.40437684,0.00043551,120]
[404192999,1769928452204,217.15233878,0.00043551,120]
[404193000,1769928452837,225.18697532,0.00043551,120]
[404193001,1769928453480,233.51889341,0.00043551,120]
[404193002,1769928454129,242.15909246,0.00043551,120]
[404193003,1769928454772,251.11897888,0.00043551,120]
[404193004,1769928455427,260.4103811,0.00043551,120]
[404193005,1769928456148,270.0455652,0.00043551,120]
[404193006,1769928456735,280.03725112,0.00043551,120]
[404193007,1769928457381,290.39862941,0.00043551,120]
[404193008,1769928458026,290.39862941,0.00043551,120]
[404193009,1769928499856,151.0,0.00043551,120]
[404193010,1769928500514,156.587,0.00043551,120]
[404193011,1769928501162,162.380719,0.00043551,120]
[404193012,1769928501834,168.3888056,0.00043551,120]
[404193013,1769928502982,174.61919141,0.00043551,120]
[404193014,1769928504123,181.08010149,0.00043551,120]
[404193015,1769928504762,187.78006525,0.00043551,120]
[404193016,1769928505405,194.72792766,0.00043551,120]
[404193017,1769928506318,201.93286099,0.00043551,120]
[404193018,1769928507079,209.40437684,0.00043551,120]
[404193019,1769928507720,833.83,0.00043551,30]
[404193020,1769928507788,217.15233878,0.00043551,120]
[404193021,1769928507955,833.83,0.00043551,30]
[404193022,1769928508224,833.83,0.00043551,30]
[404193023,1769928508392,225.18697532,0.00043551,120]
[404193024,1769928508468,833.83,0.00043551,30]
[404193025,1769928508717,833.83,0.00043551,30]
[404193026,1769928508990,833.83,0.00043551,30]
[404193027,1769928509055,233.51889341,0.00043551,120]
[404193028,1769928509238,833.83,0.00043551,30]
[404193029,1769928509481,833.83,0.00043551,30]
[404193030,1769928509688,242.15909246,0.00043551,120]
[404193031,1769928509753,833.83,0.00043551,30]
[404193032,1769928510010,833.83,0.00043551,30]
[404193033,1769928510259,833.83,0.00043551,30]
[404193034,1769928510520,833.83,0.00043551,30]
[404193035,1769928510850,251.11897888,0.00043551,120]
[404193036,1769928510935,833.83,0.00043551,30]
[404193037,1769928511186,833.83,0.00043551,30]
[404193038,1769928511445,833.83,0.00043551,30]
[404193039,1769928511507,260.4103811,0.00043551,120]
[404193040,1769928511691,833.83,0.00043551,30]
[404193041,1769928511929,833.83,0.00043551,30]
[404193042,1769928512147,270.0455652,0.00043551,120]
[404193043,1769928512208,833.83,0.00043551,30]
[404193044,1769928512426,833.83,0.00043551,30]
[404193045,1769928512670,833.83,0.00043551,30]
[404193046,1769928512778,280.03725112,0.00043551,120]
[404193047,1769928512926,833.83,0.00043551,30]
[404193048,1769928513218,833.83,0.00043551,30]
[404193049,1769928513426,290.39862941,0.00043551,120]
[404193050,1769928513492,833.83,0.00043551,30]
[404193051,1769928513975,833.91,0.00043551,30]
[404193052,1769928514081,290.39862941,0.00043551,120]
[404193053,1769928548856,151.0,0.00043551,120]
[404193054,1769928549418,156.587,0.00043551,120]
[404193055,1769928550099,162.380719,0.00043551,120]
[404193056,1769928550731,168.3888056,0.00043551,120]
[404193057,1769928551402,174.61919141,0.00043551,120]
[404193058,1769928552060,181.08010149,0.00043551,120]
[404193059,1769928552741,187.78006525,0.00043551,120]
[404193060,1769928553428,194.72792766,0.00043551,120]
[404193061,1769928554096,201.93286099,0.00043551,120]
[404193062,1769928554717,209.40437684,0.00043551,120]
[404193063,1769928555878,217.15233878,0.00043551,120]
[404193064,1769928556534,225.18697532,0.00043551,120]
[404193065,1769928557187,233.51889341,0.00043551,120]
[404193066,1769928557858,242.15909246,0.00043551,120]
[404193067,1769928558722,251.11897888,0.00043551,120]
[404193068,1769928559527,260.4103811,0.00043551,120]
[404193069,1769928560125,270.0455652,0.00043551,120]
[404193070,1769928560794,280.03725112,0.00043551,120]
[404193071,1769928561456,290.39862941,0.00043551,120]
[404193072,1769928562112,290.39862941,0.00043551,120]
[404193073,1769928615928,151.0,0.00043551,120]
[404193074,1769928616587,156.587,0.00043551,120]
[404193075,1769928617229,156.587,0.00043551,120]
[404193085,1769928631676,-3608.1736358,0.00013494,2]
[404193086,1769928631686,-1134.65,0.00013494,2]
[404193087,1769928631697,-302.38802235,0.00014843,2]
[404193088,1769928631707,-1181.767065,0.00015799,2]
[404193089,1769928631718,-94.73648587,0.00015879,2]
[404193090,1769928631750,-170.26351413,0.00015879,2]
[404193091,1769928631763,-151.0,0.00015887,2]
[404193092,1769928631773,-300.0,0.00015887,2]
[404193093,1769928631783,-8.09340034,0.00015887,2]
[404193094,1769928631812,-1161.90659966,0.00015887,2]
[404193095,1769928631823,-1594.56993222,0.00015888,2]
[404193096,1769928631834,-288.1864068,0.00015888,2]
[404193097,1769928631876,-301.73091057,0.00015888,2]